bitfinex/quotes_BTCUSD_20251230
["timestamp","ask_amount","ask_price","bid_price","bid_amount"]
[1767091122117,0.01065176,88050.0,88038.0,0.01136]
[1767091122282,0.01135705,88051.0,88038.0,0.01136]
[1767091122481,0.01065178,88050.0,88038.0,0.01136]
[1767091122681,0.05678873,88046.0,88026.0,0.01136027]
[1767091122861,0.02454241,88046.0,88030.0,0.01135976]
[1767091123067,0.01135757,88047.0,88030.0,0.01135976]
[1767091123068,0.01135757,88047.0,88030.0,0.06815819]
[1767091123382,0.01135769,88046.0,88032.0,0.0113595]
[1767091123948,0.01135782,88045.0,88030.0,0.01135976]
[1767091124899,0.02454241,88045.0,88031.0,0.02271963]
[1767091125075,0.01136,88046.0,88031.0,0.02271963]
[1767091126175,0.01135782,88045.0,88031.0,0.01136]
[1767091126811,0.01135821,88042.0,88026.0,0.01136027]
[1767091127013,0.01135847,88040.0,88024.0,0.01157053]
[1767091127183,0.01135834,88041.0,88025.0,0.0227204]
[1767091127383,0.01135847,88040.0,88025.0,0.0227204]
[1767091127564,0.01135834,88041.0,88026.0,0.01136027]
[1767091127911,0.0359031,88041.0,88026.0,0.01136027]
[1767091128205,0.01135834,88041.0,88026.0,0.01136027]
[1767091128605,0.01135847,88040.0,88025.0,0.0227204]
[1767091129182,0.0359031,88041.0,88026.0,0.01136027]
[1767091129810,0.01135847,88040.0,88025.0,0.0227204]
[1767091130171,0.01135937,88033.0,88024.0,0.00021]
[1767091130370,0.51163101,88040.0,88024.0,0.00021]
[1767091130371,0.01135911,88035.0,88024.0,0.00021]
[1767091130602,0.01135924,88034.0,88024.0,0.00021]
[1767091130752,0.01135911,88035.0,88024.0,0.00021]
[1767091131153,0.01135924,88034.0,88024.0,0.00021]
[1767091131352,0.01135911,88035.0,88024.0,0.00021]
[1767091131661,0.03590374,88036.0,88024.0,0.00021]
[1767091131903,0.06815352,88037.0,88024.0,0.00021]
[1767091132773,0.01135898,88036.0,88024.0,0.00021]
[1767091133530,0.0114,88039.0,88024.0,0.00021]
[1767091133706,0.01135873,88038.0,88024.0,0.00021]
[1767091133911,0.03593595,88039.0,88027.0,0.06816055]
[1767091134113,0.0114,88039.0,88029.0,0.01135989]
[1767091134498,0.0114,88039.0,88029.0,0.01061989]
[1767091134791,0.0116,88039.0,88029.0,0.01061989]
[1767091135045,0.0116,88039.0,88027.0,0.06816057]
[1767091135396,0.0116,88039.0,88028.0,0.01136002]
[1767091136440,0.0116,88039.0,88029.0,0.01135989]
[1767091136693,0.0116,88039.0,88031.0,0.01135963]
[1767091137002,0.0002,88039.0,88032.0,0.0113595]
[1767091137157,0.0002,88039.0,88033.0,0.01135937]
[1767091137357,0.0002,88039.0,88031.0,0.01135963]
[1767091137568,0.0002,88039.0,88030.0,0.01135976]
[1767091137761,0.0002,88039.0,88031.0,0.01135963]
[1767091137970,0.0002,88039.0,88024.0,0.00021]
[1767091138172,0.0002,88039.0,88027.0,0.01136015]
[1767091138994,0.0115586,88039.0,88024.0,0.00021]
[1767091139175,0.0002,88039.0,88025.0,0.06816239]
[1767091139369,0.0002,88039.0,88027.0,0.01136015]
[1767091139572,0.0002,88039.0,88026.0,0.01136027]
[1767091140363,0.0002,88039.0,88025.0,0.0113604]
[1767091141208,0.0002,88039.0,88026.0,0.01136027]
[1767091142203,0.0002,88039.0,88025.0,0.0113604]
[1767091142400,0.0115586,88039.0,88024.0,0.00021]
[1767091143805,0.0002,88039.0,88025.0,0.0113604]
[1767091143915,0.01135898,88036.0,88024.0,0.00016603]
[1767091144121,0.0115586,88039.0,88024.0,0.00016603]
[1767091144374,0.01135873,88038.0,88024.0,0.00016603]
[1767091144526,0.01135898,88036.0,88024.0,0.00016603]
[1767091145725,0.01135911,88035.0,88024.0,0.00016603]
[1767091146368,0.01135898,88036.0,88024.0,0.00016603]
[1767091146588,0.03588889,88037.0,88024.0,0.00016603]
[1767091147051,0.01135898,88036.0,88024.0,0.00016603]
[1767091147254,0.01135886,88037.0,88024.0,0.00016603]
[1767091147458,0.01135911,88035.0,88024.0,0.00016603]
[1767091148380,0.01135924,88034.0,88024.0,0.00012402]
[1767091148967,0.01135911,88035.0,88024.0,0.00012402]
[1767091149145,0.0113595,88032.0,88024.0,0.00012402]
[1767091149653,0.01135937,88033.0,88024.0,0.00012402]
[1767091149848,0.0113595,88032.0,88024.0,0.00012402]
[1767091150306,0.02275911,88035.0,88024.0,0.00012402]
[1767091150507,0.0472912,88035.0,88024.0,8.274e-05]
[1767091150804,0.03593209,88035.0,88024.0,8.274e-05]
[1767091151011,0.0114,88035.0,88024.0,8.274e-05]
[1767091151237,0.02275911,88035.0,88024.0,8.274e-05]
[1767091151441,0.0114,88035.0,88024.0,8.274e-05]
[1767091151616,0.02275911,88035.0,88024.0,8.274e-05]
[1767091151832,0.01135924,88034.0,88024.0,8.274e-05]
[1767091152524,0.0472912,88035.0,88024.0,8.274e-05]
[1767091152952,0.01135924,88034.0,88024.0,8.274e-05]
[1767091153120,0.0472912,88035.0,88024.0,8.274e-05]
[1767091153915,0.05679688,88033.0,88024.0,8.274e-05]
[1767091154111,0.0113595,88032.0,88024.0,8.274e-05]
[1767091155337,0.01135937,88033.0,88024.0,8.274e-05]
[1767091155827,0.03590022,88034.0,88024.0,8.274e-05]
[1767091156732,0.02454098,88034.0,88024.0,8.274e-05]
[1767091156928,0.0114,88035.0,88024.0,8.274e-05]
[1767091157965,0.0114,88035.0,88025.0,0.0113604]
[1767091158169,0.01085,88035.0,88025.0,0.0113604]
[1767091159031,0.01085,88035.0,88024.0,0.01144327]
[1767091159252,0.01085,88035.0,88026.0,0.01136027]
[1767091159457,0.01085,88035.0,88025.0,0.0113604]
[1767091159680,0.01085,88035.0,88026.0,0.01136027]
[1767091159901,0.01085,88035.0,88027.0,0.01136015]
[1767091160322,0.01085,88035.0,88029.0,0.01135989]
[1767091160750,0.01085,88035.0,88030.0,0.01135976]
[1767091160977,0.0002,88039.0,88028.0,0.06815961]
[1767091160978,0.0114,88038.0,88028.0,0.01136002]
[1767091161178,0.0114,88038.0,88027.0,0.01136015]
[1767091161539,0.0114,88038.0,88028.0,0.01136002]
[1767091161747,0.0114,88038.0,88027.0,0.01136015]
[1767091162124,0.0114,88038.0,88028.0,0.01136002]
[1767091163917,0.0114,88038.0,88029.0,0.01135989]
[1767091164064,0.0114,88038.0,88028.0,0.01136002]
[1767091164431,0.0114,88038.0,88030.0,0.01135976]
[1767091164646,0.0114,88038.0,88031.0,0.01135963]
[1767091164855,0.0114,88038.0,88032.0,0.0113595]
[1767091165066,0.0114,88038.0,88031.0,0.01135963]
[1767091165289,0.0114,88038.0,88030.0,0.01135976]
[1767091165497,0.0114,88038.0,88031.0,0.01135963]
[1767091165650,0.0114,88038.0,88030.0,0.01135976]
[1767091166772,0.0114,88038.0,88033.0,0.01135937]
[1767091166949,0.0002,88039.0,88033.0,0.01135937]
[1767091167913,0.0002,88039.0,88030.0,0.01135976]
[1767091168635,0.0002,88039.0,88031.0,0.01135963]
[1767091169465,0.0002,88039.0,88032.0,0.0113595]
[1767091169636,0.0002,88039.0,88033.0,0.01135937]
[1767091169836,0.0002,88039.0,88032.0,0.0113595]
[1767091170459,0.0002,88039.0,88033.0,0.01135937]
[1767091170660,0.0002,88039.0,88033.0,0.06815625]
[1767091170872,0.0002,88039.0,88036.0,0.01135898]
[1767091171555,0.0002,88039.0,88034.0,0.01135924]
[1767091171763,0.0002,88039.0,88034.0,0.06815517]
[1767091172360,0.0002,88039.0,88035.0,0.01135911]
[1767091172908,0.0002,88039.0,88036.0,0.01135898]
[1767091173110,0.0002,88039.0,88033.0,0.01135937]
[1767091173309,0.0002,88039.0,88032.0,0.0681567]
[1767091173522,0.0002,88039.0,88032.0,0.0113595]
[1767091173712,0.0002,88039.0,88031.0,0.05679757]
[1767091173924,0.0002,88039.0,88029.0,0.52303681]
[1767091174124,0.0002,88039.0,88030.0,0.01135976]
[1767091174923,0.0002,88039.0,88029.0,0.01135989]
[1767091175100,0.0002,88039.0,88030.0,0.01135976]
[1767091175301,0.0002,88039.0,88029.0,0.52303681]
[1767091175522,0.0002,88039.0,88029.0,0.57983597]
[1767091175742,0.0002,88039.0,88031.0,0.01135963]
[1767091176159,0.0002,88039.0,88030.0,0.01135976]
[1767091176589,0.0002,88039.0,88031.0,0.01135963]
[1767091176786,0.0002,88039.0,88029.0,0.51167692]
[1767091177170,0.0002,88039.0,88026.0,0.01136027]
[1767091177380,0.0002,88039.0,88021.0,0.01136092]
[1767091177568,0.0002,88039.0,88020.0,0.51167692]
[1767091177569,0.000549,88026.0,88022.0,0.01136079]
[1767091177771,0.000549,88026.0,88023.0,0.01136066]
[1767091178049,0.00548,88037.0,88023.0,0.01136066]
[1767091178267,0.00548,88037.0,88026.0,0.01136027]
[1767091178474,0.0114,88038.0,88028.0,0.01136002]
[1767091178671,0.0114,88038.0,88028.0,0.00035725]
[1767091181086,0.01065429,88037.0,88028.0,2.5e-07]
[1767091181298,0.01065429,88036.0,88028.0,2.5e-07]
[1767091181508,0.04730697,88038.0,88028.0,2.5e-07]
[1767091181720,0.01065462,88037.0,88028.0,2.5e-07]
[1767091182029,0.01065462,88036.0,88028.0,2.5e-07]
[1767091182227,0.01135886,88037.0,88028.0,2.5e-07]
[1767091182468,0.01065468,88036.0,88028.0,2.5e-07]
[1767091182650,0.04730697,88038.0,88028.0,2.5e-07]
[1767091182806,0.01065467,88037.0,88028.0,2.5e-07]
[1767091183009,0.03594824,88038.0,88028.0,2.5e-07]
[1767091183211,0.01065467,88037.0,88028.0,2.5e-07]
[1767091183408,0.02275873,88038.0,88028.0,2.5e-07]
[1767091183642,0.01065474,88037.0,88028.0,2.5e-07]
[1767091183798,0.02275873,88038.0,88028.0,2.5e-07]
[1767091184001,0.01065474,88037.0,88028.0,2.5e-07]
[1767091184240,0.02275873,88038.0,88028.0,2.5e-07]
[1767091184437,0.02201368,88037.0,88028.0,2.5e-07]
[1767091184618,0.01135886,88037.0,88028.0,2.5e-07]
[1767091184819,0.0359071,88037.0,88028.0,2.5e-07]
[1767091185046,0.01135886,88037.0,88028.0,2.5e-07]
[1767091185458,0.02275873,88038.0,88028.0,2.5e-07]
[1767091185749,0.01065491,88037.0,88028.0,2.5e-07]
[1767091185979,0.02275873,88038.0,88028.0,2.5e-07]
[1767091186181,0.01065491,88037.0,88028.0,2.5e-07]
[1767091186386,0.01065491,88036.0,88028.0,2.5e-07]
[1767091186525,0.01135886,88037.0,88028.0,2.5e-07]
[1767091186734,0.01065499,88036.0,88028.0,2.5e-07]
[1767091186937,0.01135886,88037.0,88028.0,2.5e-07]
[1767091187236,0.01065499,88036.0,88028.0,2.5e-07]
[1767091187418,0.01135898,88036.0,88028.0,2.5e-07]
[1767091187622,0.03594824,88038.0,88028.0,2.5e-07]
[1767091187845,0.01135898,88036.0,88028.0,2.5e-07]
[1767091188560,0.01135886,88037.0,88028.0,2.5e-07]
[1767091189746,0.0114,88038.0,88028.0,2.5e-07]
[1767091189864,0.01065486,88037.0,88028.0,2.5e-07]
[1767091190067,0.0114,88038.0,88028.0,2.5e-07]
[1767091190317,0.0106548,88037.0,88028.0,2.5e-07]
[1767091190461,0.0114,88038.0,88028.0,2.5e-07]
[1767091190670,0.0106548,88037.0,88028.0,2.5e-07]
[1767091190871,0.0114,88038.0,88028.0,2.5e-07]
[1767091191086,0.0106548,88037.0,88028.0,2.5e-07]
[1767091191327,0.0114,88038.0,88028.0,2.5e-07]
[1767091191530,0.01065472,88037.0,88028.0,2.5e-07]
[1767091191746,0.0114,88038.0,88028.0,2.5e-07]
[1767091195823,0.01065476,88037.0,88028.0,2.5e-07]
[1767091196131,0.02275873,88038.0,88028.0,2.5e-07]
[1767091196377,0.01065479,88037.0,88028.0,2.5e-07]
[1767091196570,0.02275873,88038.0,88028.0,2.5e-07]
[1767091196793,0.0114,88038.0,88028.0,2.5e-07]
[1767091197018,0.01065479,88037.0,88028.0,2.5e-07]
[1767091197158,0.0114,88038.0,88028.0,2.5e-07]
[1767091197359,0.0106549,88037.0,88028.0,2.5e-07]
[1767091197562,0.0114,88038.0,88028.0,2.5e-07]
[1767091197840,0.0106549,88037.0,88028.0,2.5e-07]
[1767091198135,0.0114,88038.0,88028.0,2.5e-07]
[1767091198452,0.01065497,88037.0,88028.0,2.5e-07]
[1767091198588,0.0114,88038.0,88028.0,2.5e-07]
[1767091199173,0.01065501,88037.0,88028.0,2.5e-07]
[1767091199372,0.0114,88038.0,88028.0,2.5e-07]
[1767091199571,0.01065501,88037.0,88028.0,2.5e-07]
[1767091199811,0.0114,88038.0,88028.0,2.5e-07]
[1767091200009,0.01065509,88037.0,88028.0,2.5e-07]
[1767091200345,0.0114,88038.0,88028.0,2.5e-07]
[1767091200510,0.01065512,88037.0,88028.0,2.5e-07]
[1767091200712,0.0114,88038.0,88028.0,2.5e-07]
[1767091201311,0.01065554,88037.0,88028.0,2.5e-07]
[1767091201512,0.01135886,88037.0,88028.0,2.5e-07]
[1767091201867,0.01135911,88035.0,88028.0,2.5e-07]
[1767091201984,0.06815667,88033.0,88028.0,2.5e-07]
[1767091202181,0.02454824,88032.0,88028.0,2.5e-07]
[1767091202436,0.02454824,88033.0,88028.0,2.5e-07]
[1767091202618,0.01135924,88034.0,88028.0,2.5e-07]
[1767091203014,0.01135963,88031.0,88020.0,0.51167692]
[1767091203218,0.005672,88020.0,88019.0,0.0002]
[1767091203427,0.005672,88020.0,87997.0,0.000146]
[1767091203428,0.01136195,88013.0,87999.0,0.01136376]
[1767091203617,0.52303926,88010.0,87999.0,4.467e-05]
[1767091203784,0.00501,88012.0,87999.0,4.467e-05]
[1767091203980,0.52303926,88010.0,87999.0,3e-06]
[1767091204387,0.0113626,88008.0,87999.0,3e-06]
[1767091204641,0.52303926,88010.0,87999.0,3e-06]
[1767091204642,0.01136247,88009.0,87999.0,3e-06]
[1767091204878,0.00501,88012.0,88009.0,0.000357]
[1767091205078,0.01136144,88017.0,88001.0,0.0113635]
[1767091205197,0.01136157,88016.0,88002.0,0.01136337]
[1767091205402,0.0245345,88018.0,88005.0,0.51167692]
[1767091205695,0.0114,88017.0,88008.0,0.52303952]
[1767091206057,0.0114,88017.0,88008.0,0.0113626]
[1767091207256,0.0114,88017.0,88007.0,0.52303965]
[1767091207516,0.0114,88017.0,88008.0,0.0113626]
[1767091208667,0.0114,88017.0,88009.0,0.01136247]
[1767091209051,0.0114,88017.0,88010.0,0.01136234]
[1767091209252,0.0114,88017.0,88009.0,0.01136247]
[1767091209452,0.0114,88017.0,88008.0,0.0113626]
[1767091209675,0.0114,88017.0,88009.0,0.01136247]
[1767091210554,0.0245345,88023.0,88014.0,0.01136182]
[1767091210811,0.0114,88023.0,88017.0,0.01136144]
[1767091211009,0.0114,88023.0,88016.0,0.06816901]
[1767091211171,0.0114,88023.0,88017.0,0.01136144]
[1767091211402,0.0114,88023.0,88016.0,0.06816901]
[1767091211608,0.0114,88023.0,88017.0,0.01136144]
[1767091211849,0.0114,88023.0,88018.0,0.01136131]
[1767091212257,0.000146,88027.0,88022.0,0.01136079]
[1767091213447,0.000146,88027.0,88024.0,0.01136053]
[1767091217194,0.000146,88027.0,88023.0,0.01136066]
[1767091217374,0.000146,88027.0,88024.0,0.01136053]
[1767091217740,0.000146,88027.0,88023.0,0.01136066]
[1767091218580,0.000146,88027.0,88024.0,0.01136053]
[1767091218735,0.000146,88027.0,88025.0,0.05680204]
[1767091220077,0.000146,88027.0,88024.0,0.06816303]
[1767091221081,0.000146,88027.0,88024.0,0.01136053]
[1767091221584,0.000146,88027.0,88023.0,0.01136066]
[1767091221788,0.000146,88027.0,88024.0,0.01136053]
[1767091222443,0.000146,88027.0,88023.0,0.01136066]
[1767091222623,0.000146,88027.0,88024.0,0.01136053]
[1767091222835,0.000146,88027.0,88024.0,0.068163]
[1767091223601,0.000146,88027.0,88024.0,0.01136053]
[1767091227159,0.000146,88027.0,88023.0,0.01136066]
[1767091227559,0.000146,88036.0,88030.0,0.01135976]
[1767091227767,0.000146,88036.0,88023.0,0.01136066]
[1767091227768,0.000146,88045.0,88043.0,0.05679006]
[1767091227994,1e-08,88045.0,88043.0,0.05679006]
[1767091228153,0.000146,88054.0,88051.0,0.01135705]
[1767091228355,0.0114,88060.0,88053.0,0.06814077]
[1767091228553,0.0114,88060.0,88051.0,0.06814189]
[1767091228755,0.01175732,88060.0,88052.0,0.01135692]
[1767091228974,0.01175732,88060.0,88051.0,0.01135705]
[1767091229186,0.01175732,88060.0,88050.0,0.51131304]
[1767091229650,0.00035732,88060.0,88051.0,0.01135705]
[1767091230272,0.00035732,88060.0,88052.0,0.01135692]
[1767091230531,0.00035732,88060.0,88054.0,0.01135666]
[1767091230871,0.00035732,88060.0,88055.0,0.01135653]
[1767091231681,0.00035732,88060.0,88054.0,0.01135666]
[1767091232197,0.00035732,88060.0,88055.0,0.01135653]
[1767091232403,0.00035732,88060.0,88056.0,0.0113564]
[1767091232626,0.00035732,88060.0,88054.0,0.01135666]
[1767091233026,0.00035732,88060.0,88055.0,0.01135653]
[1767091233906,0.00035732,88060.0,88056.0,0.0113564]
[1767091234514,0.00035732,88060.0,88057.0,0.01135628]
[1767091234717,0.00035732,88060.0,88056.0,0.0113564]
[1767091234927,0.00035732,88060.0,88055.0,0.01135653]
[1767091235508,0.00035732,88060.0,88056.0,0.0113564]
[1767091235761,3.2e-07,88060.0,88057.0,0.01135628]
[1767091235945,3.2e-07,88060.0,88057.0,0.06813724]
[1767091236779,3.2e-07,88060.0,88057.0,0.01135628]
[1767091239256,3.2e-07,88060.0,88055.0,0.01135653]
[1767091239388,0.000503,88057.0,88055.0,0.01135653]
[1767091239830,3.2e-07,88060.0,88057.0,0.01135628]
[1767091240373,3.2e-07,88060.0,88056.0,0.0113564]
[1767091240907,3.2e-07,88060.0,88055.0,0.01135653]
[1767091241232,3.2e-07,88060.0,88050.0,0.01135718]
[1767091241471,3.2e-07,88060.0,88052.0,0.01135692]
[1767091241646,3.2e-07,88060.0,88053.0,0.01135679]
[1767091242021,3.2e-07,88060.0,88052.0,0.01135692]
[1767091242423,3.2e-07,88060.0,88053.0,0.01135679]
[1767091243380,3.2e-07,88060.0,88054.0,0.01135666]
[1767091243744,3.2e-07,88060.0,88055.0,0.01135653]
[1767091244290,3.2e-07,88060.0,88056.0,0.0113564]
[1767091244663,3.2e-07,88060.0,88054.0,0.01135666]
[1767091244846,3.2e-07,88060.0,88055.0,0.01135653]
[1767091247018,3.2e-07,88060.0,88054.0,0.01135666]
[1767091247219,3.2e-07,88060.0,88053.0,0.01135679]
[1767091247424,3.2e-07,88060.0,88054.0,0.01135666]
[1767091247921,3.2e-07,88060.0,88057.0,0.01135628]
[1767091249297,3.2e-07,88060.0,88056.0,0.0113564]
[1767091249618,3.2e-07,88060.0,88057.0,0.01135628]
[1767091249933,3.2e-07,88060.0,88057.0,0.06813768]
[1767091250082,3.2e-07,88060.0,88058.0,0.05678013]
[1767091251518,3.2e-07,88060.0,88054.0,0.06813981]
[1767091251721,0.000503,88058.0,88055.0,0.06813885]
[1767091251968,3.2e-07,88060.0,88057.0,0.01135628]
[1767091252256,3.2e-07,88060.0,88056.0,0.06813837]
[1767091252400,3.2e-07,88060.0,88056.0,0.0113564]
[1767091252601,3.2e-07,88060.0,88057.0,0.01135628]
[1767091252802,3.2e-07,88060.0,88056.0,0.0113564]
[1767091254242,3.2e-07,88060.0,88058.0,0.05678075]
[1767091254416,3.2e-07,88060.0,88057.0,0.01135628]
[1767091255097,3.2e-07,88060.0,88057.0,0.06813711]
[1767091255902,3.2e-07,88060.0,88057.0,0.01135628]
[1767091258261,3.2e-07,88060.0,88057.0,0.06813731]
[1767091258444,3.2e-07,88060.0,88057.0,0.01135628]
[1767091258651,3.2e-07,88060.0,88057.0,0.06813726]
[1767091258849,3.2e-07,88060.0,88058.0,0.05678027]
[1767091259053,3.2e-07,88060.0,88058.0,0.20459027]
[1767091264162,3.2e-07,88060.0,88059.0,0.14781]
[1767091265034,3.2e-07,88060.0,88059.0,0.14645817]
[1767091265629,3.2e-07,88060.0,88058.0,0.05678027]
[1767091269569,0.000238,88072.0,88064.0,0.01135537]
[1767091269778,0.000238,88072.0,88065.0,0.01135524]
[1767091269779,0.01064841,88071.0,88065.0,0.01135524]
[1767091270073,0.00034511,88072.0,88065.0,0.01085224]
[1767091270308,0.01064843,88071.0,88065.0,0.01085224]
[1767091270508,0.00034511,88072.0,88065.0,0.01085224]
[1767091270717,0.01064814,88071.0,88065.0,0.01085224]
[1767091270873,0.00034511,88072.0,88065.0,0.01085224]
[1767091271040,0.01064813,88071.0,88064.0,0.06813192]
[1767091271398,0.00034511,88072.0,88063.0,0.0113555]
[1767091271606,0.01064791,88071.0,88063.0,0.0113555]
[1767091271803,0.00034511,88072.0,88063.0,0.0113555]
[1767091271967,0.01064791,88071.0,88064.0,0.01135537]
[1767091272169,0.00034511,88072.0,88064.0,0.01135537]
[1767091272370,0.01064841,88071.0,88065.0,0.01135524]
[1767091272635,0.00034511,88072.0,88065.0,0.01135524]
[1767091272801,0.01064827,88071.0,88063.0,0.0113555]
[1767091272951,0.00034511,88072.0,88063.0,0.0113555]
[1767091273152,0.01064827,88071.0,88064.0,0.01135537]
[1767091273357,0.00034511,88072.0,88063.0,0.0113555]
[1767091273560,0.0106488,88071.0,88065.0,0.06813112]
[1767091273764,0.00034511,88072.0,88064.0,0.01135537]
[1767091273978,0.0106488,88071.0,88064.0,0.01135537]
[1767091274180,0.00034511,88072.0,88063.0,0.0113555]
[1767091274424,0.01064911,88071.0,88063.0,0.0113555]
[1767091274624,0.00034511,88072.0,88063.0,0.0113555]
[1767091274827,0.01064905,88071.0,88063.0,0.0113555]
[1767091275007,0.00034511,88072.0,88063.0,0.0113555]
[1767091275211,0.01064905,88071.0,88063.0,0.0113555]
[1767091275463,0.00034511,88072.0,88063.0,0.0113555]
[1767091275655,0.01064941,88071.0,88064.0,0.01135537]
[1767091275869,0.00034511,88072.0,88063.0,0.0113555]
[1767091276065,0.01064941,88071.0,88064.0,0.01135537]
[1767091276388,0.00034511,88072.0,88064.0,0.01135537]
[1767091276612,0.01064987,88071.0,88065.0,0.01135524]
[1767091276913,0.00034511,88072.0,88067.0,0.01135499]
[1767091277046,0.01064987,88071.0,88067.0,0.01135499]
[1767091277384,0.00034511,88072.0,88067.0,0.01135499]
[1767091277584,0.01065048,88071.0,88067.0,0.01135499]
[1767091277787,0.00034511,88072.0,88066.0,0.01135512]
[1767091277948,0.01065048,88071.0,88065.0,0.01135524]
[1767091278149,0.00034511,88072.0,88066.0,0.01135512]
[1767091278349,0.01065112,88071.0,88066.0,0.01135512]
[1767091278694,0.00034511,88072.0,88067.0,0.01135499]
[1767091278854,0.0106511,88071.0,88067.0,0.01135499]
[1767091279053,0.00034511,88072.0,88066.0,0.01135512]
[1767091279268,0.0106511,88071.0,88068.0,0.01135486]
[1767091279470,0.0106511,88070.0,88067.0,0.01135499]
[1767091279688,0.00034511,88072.0,88068.0,0.01135486]
[1767091279853,0.01065191,88071.0,88068.0,0.01135486]
[1767091280053,0.00034511,88072.0,88068.0,0.01135486]
[1767091280260,0.01065181,88071.0,88068.0,0.01135486]
[1767091280468,0.00034511,88072.0,88068.0,0.01135486]
[1767091280663,0.01065173,88071.0,88068.0,0.01135486]
[1767091280863,0.00034511,88072.0,88067.0,0.01135499]
[1767091281061,0.01065174,88071.0,88067.0,0.01135499]
[1767091281333,0.00034511,88072.0,88067.0,0.01135499]
[1767091281532,0.01065182,88071.0,88067.0,0.01135499]
[1767091281712,0.00034511,88072.0,88067.0,0.01135499]
[1767091281896,0.01065182,88071.0,88067.0,0.01135499]
[1767091282098,0.00034511,88072.0,88068.0,0.01135486]
[1767091282295,0.01065182,88071.0,88066.0,0.01135512]
[1767091282479,0.00034511,88072.0,88067.0,0.01135499]
[1767091282680,0.01065199,88071.0,88067.0,0.01135499]
[1767091282890,0.00034511,88072.0,88067.0,0.01135499]
[1767091283091,0.01065199,88071.0,88066.0,0.01135512]
[1767091283292,0.00034511,88072.0,88066.0,0.01135512]
[1767091283498,0.01065223,88071.0,88065.0,0.0681309]
[1767091283717,0.00034511,88072.0,88065.0,0.0681309]
[1767091283893,0.01065224,88071.0,88066.0,0.01135512]
[1767091284095,0.00034511,88072.0,88067.0,0.01135499]
[1767091284294,0.01065223,88071.0,88068.0,0.01135486]
[1767091284497,0.00034511,88072.0,88068.0,0.01135486]
[1767091284693,0.01065251,88071.0,88068.0,0.01135486]
[1767091284916,0.00034511,88072.0,88068.0,0.01135486]
[1767091285101,0.01065251,88071.0,88069.0,0.01135473]
[1767091285437,0.00034511,88072.0,88069.0,0.01135473]
[1767091285799,1.1e-07,88072.0,88070.0,0.05677267]
[1767091285998,1.1e-07,88072.0,88069.0,0.06812804]
[1767091286340,1.1e-07,88072.0,88070.0,0.05677261]
[1767091286500,1e-08,88073.0,88072.0,0.05677173]
[1767091287078,1e-08,88073.0,88072.0,0.05632535]
[1767091287277,1e-08,88073.0,88070.0,0.06812721]
[1767091288027,1e-08,88073.0,88071.0,0.05677186]
[1767091288829,0.000345,88071.0,88069.0,0.01135473]
[1767091289045,0.000345,88071.0,88070.0,0.05677302]
[1767091289242,1e-08,88073.0,88070.0,0.0113546]
[1767091289493,1e-08,88073.0,88071.0,0.05677237]
[1767091290399,1e-08,88073.0,88070.0,0.0113546]
[1767091291364,1e-08,88073.0,88063.0,0.01]
[1767091291547,0.000345,88070.0,88066.0,0.01136]
[1767091291805,0.000345,88070.0,88067.0,0.01135499]
[1767091292011,1e-08,88073.0,88066.0,0.02271512]
[1767091292217,1e-08,88073.0,88066.0,0.01136]
[1767091293746,1e-08,88073.0,88066.0,0.02271512]
[1767091294153,1e-08,88073.0,88066.0,0.01136]
[1767091294771,1e-08,88073.0,88066.0,0.011015]
[1767091295634,1e-08,88073.0,88064.0,0.01135537]
[1767091295933,1e-08,88073.0,88065.0,0.01135524]
[1767091296090,1e-08,88073.0,88065.0,0.06813137]
[1767091296299,1e-08,88073.0,88067.0,0.01135499]
[1767091296710,1e-08,88073.0,88066.0,0.01135512]
[1767091297667,1e-08,88073.0,88067.0,0.01135499]
[1767091298276,1e-08,88073.0,88068.0,0.06812874]
[1767091298518,1e-08,88073.0,88069.0,0.01135473]
[1767091299578,1e-08,88073.0,88070.0,0.0113546]
[1767091300429,1e-08,88073.0,88069.0,0.01135473]
[1767091300730,1e-08,88073.0,88070.0,0.0113546]
[1767091300895,1e-08,88073.0,88069.0,0.01135473]
[1767091301097,1e-08,88073.0,88068.0,0.06812874]
[1767091301329,1e-08,88073.0,88067.0,0.01135499]
[1767091301553,1e-08,88073.0,88066.0,0.01135512]
[1767091301981,1e-08,88073.0,88067.0,0.01135499]
[1767091302135,1e-08,88073.0,88069.0,0.01135473]
[1767091303081,1e-08,88073.0,88070.0,0.0113546]
[1767091303457,1e-08,88073.0,88069.0,0.01135473]
[1767091303662,1e-08,88073.0,88068.0,0.01135486]
[1767091303863,1e-08,88073.0,88069.0,0.01135473]
[1767091304064,1e-08,88073.0,88070.0,0.0113546]
[1767091304483,1e-08,88073.0,88069.0,0.01135473]
[1767091305200,1e-08,88073.0,88070.0,0.0113546]
[1767091306518,1e-08,88073.0,88071.0,0.056772]
[1767091306948,1e-08,88073.0,88070.0,0.0681272]
[1767091307124,1e-08,88073.0,88071.0,0.05677181]
[1767091308442,1e-08,88073.0,88072.0,0.13606]
[1767091311883,1e-08,88078.0,88076.0,0.05676915]
[1767091312273,0.01078438,88087.0,88082.0,0.05676528]
[1767091312452,0.01078438,88087.0,88082.0,0.01135305]
[1767091312637,0.01078438,88087.0,88081.0,0.01135318]
[1767091313280,0.01078438,88087.0,88079.0,0.01135344]
[1767091313457,0.01078438,88087.0,88080.0,0.01135331]
[1767091313883,0.01078438,88087.0,88082.0,0.01135305]
[1767091314094,0.01078438,88087.0,88084.0,0.01135279]
[1767091314095,0.01023538,88087.0,88084.0,0.01135279]
[1767091314347,0.0001611,88093.0,88084.0,0.01135279]
[1767091314559,0.000549,88084.0,88083.0,0.01135292]
[1767091314693,0.000549,88084.0,88082.0,0.01135305]
[1767091314900,0.0115211,88093.0,88083.0,0.01135292]
[1767091315436,0.0115211,88093.0,88084.0,0.01135279]
[1767091315830,0.000549,88084.0,88082.0,0.01135305]
[1767091316654,0.0115211,88093.0,88083.0,0.01135292]
[1767091317315,0.0115211,88093.0,88084.0,0.01135279]
[1767091318322,0.000549,88084.0,88082.0,0.01135305]
[1767091318487,0.0115211,88093.0,88082.0,0.01135305]
[1767091319584,0.0115211,88093.0,88083.0,0.01135292]
[1767091319790,0.0115211,88093.0,88081.0,0.01135318]
[1767091320302,0.0115211,88093.0,88083.0,0.01135292]
[1767091320692,0.000549,88083.0,88081.0,0.01135318]
[1767091321096,0.0115211,88093.0,88082.0,0.01135305]
[1767091321286,0.0115211,88093.0,88081.0,0.01135318]
[1767091321480,0.0115211,88093.0,88083.0,0.01135292]
[1767091321694,0.0115211,88093.0,88082.0,0.01135305]
[1767091322111,0.02491978,88097.0,88094.0,0.01135151]
[1767091322361,0.03065388,88107.0,88099.0,0.01135086]
[1767091322571,0.0115211,88112.0,88100.0,0.01135073]
[1767091322933,0.0115211,88112.0,88099.0,0.01135086]
[1767091323287,0.00026821,88103.0,88100.0,0.00635073]
[1767091323433,0.00026821,88103.0,88100.0,0.01127873]
[1767091324128,0.00026821,88103.0,88100.0,0.01123693]
[1767091324356,0.00026821,88103.0,88098.0,0.01135099]
[1767091324611,0.01161856,88103.0,88094.0,0.01136]
[1767091324806,0.00026821,88103.0,88094.0,0.01136]